[Event "SixDays Budapest GM-B January 2024"]
[Site "Budapest"]
[Date "2024.01.30"]
[Round "6.1"]
[White "Grover, Sahaj"]
[Black "Coenen, Michael"]
[Result "1-0"]
[ECO "B12"]
[WhiteElo "2503"]
[BlackElo "2330"]
[Annotator "TA"]
[PlyCount "73"]
[EventDate "2024.01.26"]
[EventType "tourn"]
[EventCountry "HUN"]
[SourceTitle "playchess.com"]
[Source "ChessBase"]
[SourceQuality "1"]
[TimeControl "5400+30"]

{[%evp 9,73,15,17,20,8,0,0,0,31,6,25,56,54,43,33,57,89,73,85,25,23,35,7,0,0,0,0,0,0,0,85,75,54,0,204,0,269,262,268,118,145,121,142,129,117,114,325,322,310,310,421,421,421,421,414,414,407,400,750,743,721,716,688,688,971,965]} 1. e4 {[%emt 0:01:30]} c6 {[%emt 0:00:08]} 2. d4 {[%emt 0:00:21]} d5 {[%emt 0:00:06]} 3. e5 {[%emt 0:00:15]} c5 {[%emt 0:00:08]} 4. dxc5 {[%emt 0:00:29]} e6 {[%emt 0:00:06]} 5. Nf3 {[%emt 0:01:22]} Bxc5 {[%emt 0:00:07]} 6. a3 {[%emt 0:00:44]} Ne7 {[%emt 0:00:06]} 7. Bd3 {[%emt 0:00:55]} (7. b4 $5 Bb6 $8 8. Bd3 $11) 7... Ng6 {[%emt 0:00:06]} 8. O-O {[%emt 0:01:26] The position is equal.} Nc6 {[%emt 0:02:23]} 9. Re1 {[%emt 0:05:27]} Qc7 {[%emt 0:05:01][%cal Rg6e5]} 10. b4 {[%emt 0:03:09]} Be7 {[%emt 0:00:05]} 11. Bb2 {[%emt 0:01:58]} O-O {[%emt 0:01:12]} 12. Nbd2 {[%emt 0:01:51]} b6 {[%emt 0:05:59][%cal Bb7b6,Bb6b5][%mdl 32]} 13. Rc1 {[%emt 0:05:40]} Rd8 {[%emt 0:12:51]} 14. c4 {[%emt 0:11:06]} (14. g3 $16) 14... dxc4 $11 {[%emt 0:05:02]} 15. Bxc4 {[%emt 0:00:34]} a6 $1 {[%emt 0:06:44] Prevents Bb5} 16. Qb3 {[%emt 0:05:34]} b5 $1 {[%emt 0:08:46]} 17. Bd3 {[%emt 0:00:06] Be4 is the strong threat.} Bb7 {[%emt 0:01:04]} 18. Bxg6 {[%emt 0:08:32]} hxg6 {[%emt 0:00:05]} 19. Ne4 {[%emt 0:00:05] Nfg5 would now be deadly.} Rd5 {[%emt 0:12:38]} (19... Qd7 $1 $11 {remains equal.}) 20. Qe3 {[%emt 0:08:49] White is more active.} Qd7 {[%emt 0:06:12]} 21. Qf4 {[%emt 0:04:12]} ({White should play} 21. Nfg5 $1 $14 Bxg5 (21... Nxe5 $2 22. Qh3 $18) 22. Nxg5 (22. Qxg5 a5 $14)) 21... Rd8 $2 {[%emt 0:03:57]} (21... a5 $11 22. Nfg5 Bxg5 23. Nxg5 axb4 24. axb4 Ra2) 22. h4 $2 {[%emt 0:05:09]} (22. Nfg5 $18 Bxg5 23. Nxg5) 22... Rd3 $2 {[%emt 0:08:30][%mdl 8192] [#]} (22... Rc8 $11 {and Black is okay.}) 23. h5 $1 $18 {[%emt 0:01:24][%mdl 512]} gxh5 {[%emt 0:00:56] [#]} 24. Nf6+ {[%emt 0:00:29][%mdl 512]} Bxf6 $16 {[%emt 0:03:36]} (24... gxf6 $2 25. exf6 Rxf3 26. Qg5+ (26. Qxf3 Ne5 $18) (26. gxf3 Bf8 $14) 26... Kf8 27. fxe7+ (27. gxf3 Ke8 $18) 27... Qxe7 28. Qxh5 $18) 25. exf6 {[%emt 0:00:05] Qg5 would kill now.} e5 {[%emt 0:02:01]} 26. Nxe5 $40 {[%emt 0:03:43][%mdl 128] White has strong attack.} (26. Bxe5 Qg4 27. Bc7 Qxf4 (27... Rxa3 28. Qxg4 hxg4 29. Bxd8 $16) 28. Bxf4 gxf6 $16 (28... Rxa3 29. Bc7 $15)) 26... Nxe5 {[%emt 0:00:30]} 27. Rxe5 {[%emt 0:00:08] Black must now prevent Rg5.} Rd1+ $2 {[%emt 0:02:41] This costs Black the game.} (27... Qg4 $16 28. Qxg4 hxg4 29. fxg7 g3) 28. Rxd1 $18 {[%emt 0:00:22]} Qxd1+ {[%emt 0:00:02]} 29. Kh2 {[%emt 0:00:09]} Qg4 {[%emt 0:07:04]} 30. Qxg4 {[%emt 0:00:12]} hxg4 {[%emt 0:00:01]} 31. fxg7 {[%emt 0:00:08][%mdl 4096] Endgame. aiming for Rh5. KRB-KRB} f6 {[%emt 0:05:13]} 32. Re7 {[%emt 0:00:06]} Bc6 {[%emt 0:01:18]} 33. Bxf6 {[%emt 0:00:07] Threatens to win with Rc7.} Kh7 {[%emt 0:01:03] [#]} (33... Rd6 $142 34. Be5 g3+ 35. Kxg3 Rd8) 34. g8=Q+ $1 {[%emt 0:01:03] White is clearly winning.} Kxg8 {[%emt 0:00:02]} 35. Rg7+ {[%emt 0:00:08]} Kf8 {[%emt 0:00:03]} 36. Rc7 $1 {[%emt 0:00:05]} g3+ {[%emt 0:01:19]} 37. fxg3 {[%emt 0:00:14] Weighted Error Value: White=0.28 (precise) /Black=0.46.  Loses game:     	---       	Black=3      Missed win:     	White=1     	---        Mistake:       	White=3     	Black=2      Inaccurate:     	---       	Black=3      OK:         	White=11    	Black=5      Best:        	White=2     	Black=4      Strong:       	---       	Black=2      Brilliant:      	White=1     	---} 1-0

[Event "SixDays Budapest GM-B January 2024"]
[Site "Budapest"]
[Date "2024.01.30"]
[Round "6.2"]
[White "Lee, Alice"]
[Black "Gombocz, Ferenc Jr."]
[Result "0-1"]
[ECO "D10"]
[WhiteElo "2379"]
[BlackElo "2366"]
[Annotator "RC"]
[PlyCount "152"]
[EventDate "2024.01.26"]
[EventType "tourn"]
[EventCountry "HUN"]
[SourceTitle "playchess.com"]
[Source "ChessBase"]
[SourceQuality "1"]
[TimeControl "5400+30"]

1. d4 {[%emt 0:00:03]} d5 {[%emt 0:00:08]} 2. c4 {[%emt 0:00:06]} c6 {[%emt 0:00:03]} 3. cxd5 {[%emt 0:00:09]} cxd5 {[%emt 0:00:04]} 4. Bf4 {[%emt 0:00:08]} Nc6 {[%emt 0:00:13]} 5. e3 {[%emt 0:00:08]} Nf6 {[%emt 0:01:08]} 6. Nc3 {[%emt 0:00:07]} a6 {[%emt 0:00:11]} 7. Be2 {[%emt 0:00:06]} e6 {[%emt 0:00:35]} 8. Nf3 {[%emt 0:00:14]} Be7 {[%emt 0:00:40]} 9. h3 {[%emt 0:02:18]} O-O {[%emt 0:03:44]} 10. O-O {[%emt 0:00:16]} Bd7 {[%emt 0:06:02]} 11. Rc1 {[%emt 0:00:15]} Rc8 {[%emt 0:05:25]} 12. Na4 {[%emt 0:00:35]} Ne4 {[%emt 0:01:18]} 13. a3 {[%emt 0:14:32]} Na7 {[%emt 0:28:59]} 14. Rxc8 {[%emt 0:00:54]} Nxc8 {[%emt 0:00:06]} 15. Ne5 {[%emt 0:10:13]} Be8 {[%emt 0:28:29]} 16. Nd3 {[%emt 0:05:57]} Qa5 {[%emt 0:04:56]} 17. Nac5 {[%emt 0:01:28]} Nxc5 {[%emt 0:00:09]} 18. dxc5 {[%emt 0:00:11]} f6 {[%emt 0:00:37]} 19. Qc1 {[%emt 0:08:47]} e5 {[%emt 0:00:54]} 20. Bg3 {[%emt 0:01:52]} Na7 {[%emt 0:02:39]} 21. b4 {[%emt 0:01:35]} Qa4 {[%emt 0:00:41]} 22. Bd1 {[%emt 0:02:14]} Qb5 {[%emt 0:00:49]} 23. Qd2 {[%emt 0:02:13]} Bf7 {[%emt 0:06:38]} 24. Nb2 {[%emt 0:09:12]} Qc6 {[%emt 0:00:16]} 25. Bb3 {[%emt 0:01:30]} Rd8 {[%emt 0:00:08]} 26. Rd1 {[%emt 0:03:39]} d4 {[%emt 0:01:11]} 27. Nc4 {[%emt 0:02:19]} Nb5 {[%emt 0:01:03]} 28. Bxe5 {[%emt 0:04:41]} fxe5 {[%emt 0:03:09]} 29. Nxe5 {[%emt 0:00:09]} Bxb3 {[%emt 0:00:04]} 30. Nxc6 {[%emt 0:00:10]} bxc6 {[%emt 0:00:04]} 31. Rb1 {[%emt 0:00:35]} Bf7 {[%emt 0:00:38]} 32. exd4 {[%emt 0:05:24]} Nxa3 {[%emt 0:00:30]} 33. Ra1 {[%emt 0:04:46]} Nb5 {[%emt 0:00:08]} 34. Qf4 {[%emt 0:02:48]} Nxd4 {[%emt 0:01:33]} 35. Qc7 {[%emt 0:00:08]} Bf6 {[%emt 0:00:08]} 36. Rxa6 {[%emt 0:02:40]} Re8 {[%emt 0:01:20]} 37. f4 {[%emt 0:00:44]} Bd5 {[%emt 0:00:41]} 38. Qd7 {[%emt 0:06:40]} Re1+ {[%emt 0:00:24]} 39. Kh2 {[%emt 0:01:55]} h6 {[%emt 0:01:01]} 40. Ra8+ {[%emt 0:01:15]} Kh7 {[%emt 0:00:04]} 41. Re8 {[%emt 0:01:14]} Rd1 {[%emt 0:01:12]} 42. Qc8 {[%emt 0:01:35]} Rd2 {[%emt 0:00:15]} 43. Rh8+ {[%emt 0:00:35]} Kg6 {[%emt 0:00:08]} 44. Qg4+ {[%emt 0:02:37]} Kf7 {[%emt 0:00:24]} 45. Qh5+ {[%emt 0:00:25]} Ke6 {[%emt 0:01:02]} 46. Qg4+ {[%emt 0:02:17]} Ke7 {[%emt 0:00:19]} 47. Kg1 {[%emt 0:01:17]} Bxg2 {[%emt 0:01:43]} 48. Qxg2 {[%emt 0:00:12]} Rxg2+ {[%emt 0:00:06]} 49. Kxg2 {[%emt 0:00:02]} Ke6 {[%emt 0:00:14]} 50. Kf2 {[%emt 0:01:10]} Kd5 {[%emt 0:00:13]} 51. Re8 {[%emt 0:00:33]} Kc4 {[%emt 0:00:28]} 52. Rb8 {[%emt 0:00:07]} Nb5 {[%emt 0:00:59]} 53. Rc8 {[%emt 0:00:50]} Kd5 {[%emt 0:00:19]} 54. Ke3 {[%emt 0:00:23]} Bc3 {[%emt 0:00:26]} 55. Rd8+ {[%emt 0:00:03]} Kc4 {[%emt 0:00:37]} 56. Rc8 {[%emt 0:00:12]} Nd4 {[%emt 0:00:23]} 57. Rc7 {[%emt 0:01:13]} g5 {[%emt 0:01:37]} 58. fxg5 {[%emt 0:00:49]} hxg5 {[%emt 0:00:05]} 59. Rc8 {[%emt 0:00:45]} Bxb4 {[%emt 0:00:30]} 60. Ke4 {[%emt 0:00:30]} Kxc5 {[%emt 0:01:03]} 61. Rg8 {[%emt 0:00:10]} Bd2 {[%emt 0:00:21]} 62. Rd8 {[%emt 0:00:07]} Nb3 {[%emt 0:00:41]} 63. Kd3 {[%emt 0:00:23]} Bf4 {[%emt 0:00:18]} 64. Rf8 {[%emt 0:00:14]} Kd5 {[%emt 0:00:50]} 65. Kc3 {[%emt 0:01:07]} Nc5 {[%emt 0:00:56]} 66. Rf5+ {[%emt 0:00:24]} Be5+ {[%emt 0:00:22]} 67. Kc2 {[%emt 0:00:25]} Ne6 {[%emt 0:00:26]} 68. Rf7 {[%emt 0:00:39]} Ke4 {[%emt 0:00:16]} 69. Rh7 {[%emt 0:00:28]} Nf4 {[%emt 0:00:27]} 70. Kd2 {[%emt 0:01:06]} Kf3 {[%emt 0:00:20]} 71. Rh6 {[%emt 0:00:35]} c5 {[%emt 0:00:13]} 72. Rc6 {[%emt 0:00:33]} Bd4 {[%emt 0:00:17]} 73. Ke1 {[%emt 0:00:31]} Nxh3 {[%emt 0:00:17]} 74. Rc8 {[%emt 0:00:05]} g4 {[%emt 0:00:17]} 75. Rc7 {[%emt 0:00:55]} g3 {[%emt 0:00:19]} 76. Rh7 {[%emt 0:00:22]} Nf4 {[%emt 0:00:24]} 0-1

[Event "SixDays Budapest GM-B January 2024"]
[Site "Budapest"]
[Date "2024.01.30"]
[Round "6.3"]
[White "Varga, Zoltan"]
[Black "Kaczur, Florian"]
[Result "0-1"]
[ECO "B56"]
[WhiteElo "2366"]
[BlackElo "2506"]
[Annotator "TA"]
[PlyCount "66"]
[EventDate "2024.01.26"]
[EventType "tourn"]
[EventCountry "HUN"]
[SourceTitle "playchess.com"]
[Source "ChessBase"]
[SourceQuality "1"]
[TimeControl "5400+30"]

{[%evp 19,66,25,33,33,41,22,19,18,41,50,50,44,45,36,44,8,16,-51,0,0,0,-62,-79,-79,-69,-54,-38,-39,-44,-112,-97,-112,-93,-101,-95,-93,-82,-275,-285,-287,-288,-273,-277,-261,-206,-287,-267,-29988,-29989]} 1. Nf3 {[%emt 0:02:39]} c5 {[%emt 0:00:47]} 2. e4 {[%emt 0:00:06]} Nc6 {[%emt 0:00:29]} 3. d4 {[%emt 0:00:08]} cxd4 {[%emt 0:00:04]} 4. Nxd4 {[%emt 0:00:04]} Nf6 {[%emt 0:00:29]} 5. Nc3 {[%emt 0:00:07]} d6 {[%emt 0:05:33]} 6. f3 {[%emt 0:00:45]} e5 {[%emt 0:00:07]} 7. Nb3 {[%emt 0:00:45]} Be7 {[%emt 0:00:06]} 8. Be3 {[%emt 0:00:17]} Be6 {[%emt 0:06:11]} 9. Nd5 {[%emt 0:01:45]} Bxd5 {[%emt 0:01:38]} 10. exd5 {[%emt 0:00:10]} Nb8 {[%emt 0:00:05]} 11. Qd2 {[%emt 0:01:03]} Nbd7 {[%emt 0:03:44]} 12. c4 {[%emt 0:01:43]} a5 {[%emt 0:03:32]} 13. a4 {[%emt 0:04:56] The position is equal.} e4 {[%emt 0:11:58]} 14. f4 {[%emt 0:04:16]} Ng4 {[%emt 0:00:45]} 15. Bd4 {[%emt 0:05:18]} Bf6 {[%emt 0:18:58]} 16. Be2 {[%emt 0:05:30]} Bxd4 {[%emt 0:04:15]} 17. Qxd4 {[%emt 0:00:55]} O-O {[%emt 0:04:15][%cal Of8e8]} 18. O-O-O {[%emt 0:00:35]} (18. Qc3 $11 h5 19. h3) 18... Ngf6 {[%emt 0:00:12]} ({Black should try} 18... Qf6 $1 $15) 19. g4 $11 {[%emt 0:00:02]} Nb6 {[%emt 0:06:53]} 20. c5 {[%emt 0:17:54]} ({White should play} 20. h4 $11) 20... dxc5 {[%emt 0:00:04]} 21. Nxc5 {[%emt 0:00:02]} Nfxd5 {[%emt 0:03:29]} 22. Kb1 {[%emt 0:00:47]} Nxf4 {[%emt 0:04:17] Excellent horsemanship.} 23. Qxe4 {[%emt 0:02:19]} Qc7 {[%emt 0:01:39]} 24. Bf3 {[%emt 0:01:30]} (24. Bb5 $1 $15 Qxc5 25. Qxf4) 24... Rfe8 {[%emt 0:04:56]} 25. Qc2 {[%emt 0:01:24]} Rac8 {[%emt 0:00:48]} 26. Rc1 {[%emt 0:00:13][%cal Oc2d2]} Nbd5 $36 {[%emt 0:03:11][%mdl 2048] Black is on the roll.} 27. Qd2 {[%emt 0:00:58] Prevents b6} Qd6 {[%emt 0:03:21]} 28. Nxb7 {[%emt 0:01:34] [#] This costs White the game.} (28. Rhd1 $17 {might work better.} Rxc5 29. Rxc5 Qxc5 30. Bxd5 Nxd5 31. Qxd5) 28... Nc3+ $1 $19 {[%emt 0:01:32][%mdl 512]} 29. Qxc3 {[%emt 0:00:27]} Qg6+ {[%emt 0:00:04]} 30. Ka1 {[%emt 0:00:35]} Rxc3 {[%emt 0:00:03]} 31. Rxc3 {[%emt 0:00:07]} Nd3 {[%emt 0:04:07][%cal Oh7h5] Hoping for ...h5!} 32. h3 {[%emt 0:04:15]} Nb4 {[%emt 0:00:57] Prevents Bc6. ( -> ...Qe6)} 33. Rd1 $2 {[%emt 0:04:11] [#]} (33. Nc5 $19) 33... Qe6 {[%emt 0:01:04] Weighted Error Value: White=0.54/Black=0.10 (very precise) .  Loses game:     	White=1     	---        Mistake:       	White=4     	Black=1      Inaccurate:     	White=2     	---        OK:         	White=4     	Black=12     Best:        	White=5     	Black=1      Brilliant:      	---       	Black=1} 0-1

[Event "SixDays Budapest GM-B January 2024"]
[Site "Budapest"]
[Date "2024.01.30"]
[Round "6.4"]
[White "Celik, Hasan Huseyin"]
[Black "Pap, Misa"]
[Result "1-0"]
[ECO "E11"]
[WhiteElo "2436"]
[BlackElo "2422"]
[Annotator "RC"]
[PlyCount "91"]
[EventDate "2024.01.26"]
[EventType "tourn"]
[EventCountry "HUN"]
[SourceTitle "playchess.com"]
[Source "ChessBase"]
[SourceQuality "1"]
[TimeControl "5400+30"]

1. d4 {[%emt 0:06:00]} Nf6 {[%emt 0:05:16]} 2. c4 {[%emt 0:00:13]} e6 {[%emt 0:00:08]} 3. Nf3 {[%emt 0:00:10]} Bb4+ {[%emt 0:00:07]} 4. Nbd2 {[%emt 0:00:08]} b6 {[%emt 0:02:00]} 5. a3 {[%emt 0:00:06]} Bxd2+ {[%emt 0:00:04]} 6. Qxd2 {[%emt 0:00:08]} Bb7 {[%emt 0:00:06]} 7. e3 {[%emt 0:00:11]} d6 {[%emt 0:00:34]} 8. b4 {[%emt 0:01:03]} Nbd7 {[%emt 0:00:06]} 9. Bb2 {[%emt 0:00:09]} O-O {[%emt 0:00:15]} 10. Be2 {[%emt 0:00:06]} Ne4 {[%emt 0:01:01]} 11. Qc2 {[%emt 0:00:08]} f5 {[%emt 0:00:18]} 12. O-O {[%emt 0:00:17]} Qe7 {[%emt 0:00:50]} 13. Rad1 {[%emt 0:06:45]} a5 {[%emt 0:00:05]} 14. d5 {[%emt 0:10:51]} e5 {[%emt 0:00:57]} 15. Ne1 {[%emt 0:01:40]} axb4 {[%emt 0:09:30]} 16. axb4 {[%emt 0:00:02]} c6 {[%emt 0:01:45]} 17. f3 {[%emt 0:10:34]} Nef6 {[%emt 0:01:35]} 18. dxc6 {[%emt 0:06:47]} Bxc6 {[%emt 0:00:06]} 19. Qxf5 {[%emt 0:00:43]} Ne4 {[%emt 0:07:13]} 20. Qh3 {[%emt 0:05:34]} Ra2 {[%emt 0:00:15]} 21. Nd3 {[%emt 0:02:30]} Ng5 {[%emt 0:06:59]} 22. Qg4 {[%emt 0:01:48]} h6 {[%emt 0:10:15]} 23. e4 {[%emt 0:12:27]} b5 {[%emt 0:13:45]} 24. Rd2 {[%emt 0:14:58]} Nf6 {[%emt 0:17:05]} 25. Qg3 {[%emt 0:00:01]} Qa7+ {[%emt 0:09:43]} 26. Qf2 {[%emt 0:04:22]} Qf7 {[%emt 0:07:41]} 27. c5 {[%emt 0:04:29]} Qg6 {[%emt 0:01:01]} 28. Qe3 {[%emt 0:01:43]} Rxb2 {[%emt 0:01:25]} 29. Rxb2 {[%emt 0:00:27]} Nh5 {[%emt 0:01:14]} 30. cxd6 {[%emt 0:01:44]} Nh3+ {[%emt 0:00:12]} 31. Kh1 {[%emt 0:00:05]} N3f4 {[%emt 0:00:21]} 32. Nxf4 {[%emt 0:03:44]} Rxf4 {[%emt 0:00:05]} 33. g4 {[%emt 0:00:58]} Nf6 {[%emt 0:00:23]} 34. Qc5 {[%emt 0:00:52]} Qe8 {[%emt 0:01:08]} 35. Rc2 {[%emt 0:00:40]} Bd7 {[%emt 0:00:23]} 36. Rg1 {[%emt 0:00:42]} Nh7 {[%emt 0:00:23]} 37. Qd5+ {[%emt 0:00:34]} Kh8 {[%emt 0:00:39]} 38. Ra1 {[%emt 0:01:22]} Rf8 {[%emt 0:00:36]} 39. Rc5 {[%emt 0:00:49]} Ng5 {[%emt 0:00:30]} 40. Qxe5 {[%emt 0:00:08]} Qf7 {[%emt 0:01:14]} 41. Qe7 {[%emt 0:00:32]} Qf4 {[%emt 0:00:01]} 42. Rxg5 {[%emt 0:00:59]} hxg5 {[%emt 0:00:01]} 43. Qxd7 {[%emt 0:00:07]} Qd2 {[%emt 0:01:33]} 44. Qxb5 {[%emt 0:00:23]} Qc3 {[%emt 0:00:05]} 45. Rd1 {[%emt 0:00:26]} Rxf3 {[%emt 0:00:12]} 46. d7 {[%emt 0:00:07]} 1-0

[Event "SixDays Budapest GM-B January 2024"]
[Site "Budapest"]
[Date "2024.01.30"]
[Round "6.5"]
[White "Pang, Tao"]
[Black "Dau Khuong Duy"]
[Result "1-0"]
[ECO "E97"]
[WhiteElo "2430"]
[BlackElo "2309"]
[Annotator "TA"]
[PlyCount "93"]
[EventDate "2024.01.26"]
[EventType "tourn"]
[EventCountry "HUN"]
[SourceTitle "playchess.com"]
[Source "ChessBase"]
[SourceQuality "1"]
[TimeControl "5400+30"]

{[%evp 19,93,18,54,49,56,51,93,84,110,116,159,149,156,166,165,148,314,277,310,304,295,237,288,253,287,300,377,374,338,359,322,377,324,267,285,286,276,300,268,266,380,381,346,333,336,322,324,335,345,316,317,279,360,360,346,358,364,356,390,381,5114,2486,5022,4914,5357,2512,5226,5214,29974,29975,29974,29976,29976,29977,29968,5314]} 1. d4 {[%emt 0:00:07]} Nf6 {[%emt 0:00:24]} 2. c4 {[%emt 0:00:09]} g6 {[%emt 0:00:13]} 3. Nc3 {[%emt 0:00:08]} Bg7 {[%emt 0:00:11]} 4. e4 {[%emt 0:00:12]} d6 {[%emt 0:00:34]} 5. Nf3 {[%emt 0:00:05]} O-O {[%emt 0:01:04]} 6. Be2 {[%emt 0:00:56]} e5 {[%emt 0:00:53]} 7. O-O {[%emt 0:00:20]} Nc6 {[%emt 0:01:07]} 8. d5 {[%emt 0:00:28]} Ne7 {[%emt 0:00:17]} 9. b4 {[%emt 0:00:33]} Ne8 {[%emt 0:01:41]} 10. c5 {[%emt 0:00:59]} h6 {[%emt 0:02:13]} 11. a4 {[%emt 0:03:32]} f5 {[%emt 0:01:34][%cal Bf7f5,Bf5f4][%mdl 32]} 12. Nd2 {[%emt 0:00:21]} Nf6 {[%emt 0:05:55]} 13. f3 {[%emt 0:05:35] White is better.} f4 {[%emt 0:04:37]} 14. Ba3 {[%emt 0:03:29]} Ne8 {[%emt 0:17:01]} 15. Nc4 {[%emt 0:04:45]} g5 {[%emt 0:11:08]} 16. a5 {[%emt 0:05:11] White is more active.} Ng6 {[%emt 0:04:45]} 17. b5 {[%emt 0:01:56]} b6 $2 {[%emt 0:03:27]} (17... dxc5 $16 18. Bxc5 Rf6) 18. axb6 {[%emt 0:08:54]} axb6 {[%emt 0:00:19]} 19. cxb6 {[%emt 0:00:10]} cxb6 {[%emt 0:00:07]} 20. Bb4 {[%emt 0:01:57]} Rb8 {[%emt 0:03:56]} 21. Ra7 {[%emt 0:01:12]} h5 {[%emt 0:04:40]} 22. Na4 {[%emt 0:03:03]} g4 {[%emt 0:05:18]} 23. fxg4 {[%emt 0:04:48]} Nh4 {[%emt 0:04:42]} 24. h3 {[%emt 0:11:21]} (24. gxh5 Qg5 25. Rf2 (25. Bxd6 $2 Qxg2#) 25... Nf6 $16) 24... hxg4 {[%emt 0:06:29]} 25. Bxg4 {[%emt 0:01:27]} Rf6 {[%emt 0:06:56] [#] Black is weak on the light squares} 26. Nxe5 {[%emt 0:10:57][%mdl 512]} dxe5 {[%emt 0:02:15]} 27. Be7 {[%emt 0:00:12]} Bxg4 {[%emt 0:00:14]} 28. Qxg4 Qc8 {[%emt 0:01:58]} 29. Qxh4 {[%emt 0:00:31]} Rg6 {[%emt 0:00:20]} (29... Rf7 $142 30. Qh5 Qc4) 30. Qh5 $18 {[%emt 0:07:50]} Rh6 {[%emt 0:02:03]} 31. Qe2 {[%emt 0:00:23]} Rb7 {[%emt 0:01:42]} 32. Rxb7 {[%emt 0:01:10]} Qxb7 {[%emt 0:00:06]} 33. Bb4 {[%emt 0:05:51]} Qc8 {[%emt 0:00:48]} 34. Nc3 {[%emt 0:02:21]} Rg6 {[%emt 0:00:49]} 35. Rf3 {[%emt 0:00:12]} Bf8 {[%emt 0:00:16]} 36. Bxf8 {[%emt 0:01:05]} Kxf8 {[%emt 0:00:11]} 37. Nd1 {[%emt 0:00:41]} Qc5+ {[%emt 0:00:13]} 38. Kh2 {[%emt 0:00:35]} Nd6 {[%emt 0:01:58]} 39. Rc3 {[%emt 0:05:37]} Qxb5 {[%emt 0:02:28]} (39... Qd4 40. Qh5 (40. Rc6 Kf7 $18) 40... Kg7 41. Rc7+ Nf7) 40. Qh5 {[%emt 0:00:23][%csl LRe5,LRg6] [#] Threatening mate with Qh8+.} Qe8 {[%emt 0:00:08]} 41. Qh8+ {[%emt 0:00:23]} Ke7 {[%emt 0:00:06]} 42. Qh7+ {[%emt 0:00:40]} Kf6 {[%emt 0:00:26]} 43. Nf2 {[%emt 0:03:45] Rc7 would kill now.} Qg8 {[%emt 0:02:38]} 44. Qh4+ {[%emt 0:00:10] White mates.} Kg7 {[%emt 0:00:10]} 45. Rc7+ {[%emt 0:00:22]} Nf7 {[%emt 0:00:22]} 46. Ng4 {[%emt 0:00:17]} Qe8 {[%emt 0:01:18]} 47. Re7 {[%emt 0:00:46] White took control after the opening.   Weighted Error Value: White=0.10 (very precise) /Black=0.45.  Loses game:     	---       	Black=1      Mistake:       	---       	Black=2      Inaccurate:     	---       	Black=3      OK:         	White=15    	Black=10     Best:        	White=2     	Black=1} (47. Qh5 $142 f3 48. Nxe5 (48. gxf3 Qb5 $18) 48... Rf6 49. gxf3 (49. Nxf3 Kg8 $18) 49... b5 50. Qg4+ Kh8 51. Rc8 (51. Qh4+ Kg7 $18) 51... Qxc8 52. Qxc8+ (52. Nxf7+ Kh7 $18) 52... Kg7 53. Qg4+ Kh6 54. Nxf7+ Rxf7 55. d6) 1-0